bitfinex-derivatives/quotes_SOLF0:USTF0_20251201
["timestamp","ask_amount","ask_price","bid_price","bid_amount"]
[1764578582761,3.32185967,127.63,127.61,30.05998699]
[1764578587064,3.32185967,127.63,127.61,26.82998699]
[1764578587773,3.32185967,127.63,127.61,30.05998699]
[1764578595470,0.05185967,127.63,127.62,3.23]
[1764578600480,3.43185967,127.63,127.61,30.02998699]
[1764578600775,0.05185967,127.63,127.62,3.22]
[1764578607982,0.05185967,127.63,127.62,10.2733]
[1764578612878,0.05185967,127.63,127.62,14.32150358]
[1764578613778,0.05185967,127.63,127.62,3.22]
[1764578615879,0.05185967,127.63,127.62,37.0333]
[1764578619880,0.05185967,127.63,127.62,29.98]
[1764578623691,0.05185967,127.63,127.62,37.0333]
[1764578633094,0.05185967,127.63,127.62,10.2733]
[1764578633290,0.05185967,127.63,127.62,37.0333]
[1764578635803,0.05185967,127.63,127.62,10.2733]
[1764578636103,0.05185967,127.63,127.62,37.0333]
[1764578637702,0.00185967,127.63,127.62,41.08150358]
[1764578639504,0.00185967,127.63,127.62,10.2733]
[1764578639702,0.00185967,127.63,127.62,41.08150358]
[1764578641399,0.00185967,127.63,127.62,64.30908185]
[1764578641999,0.00185967,127.63,127.62,37.0333]
[1764578642199,0.00185967,127.63,127.62,41.08150358]
[1764578642406,0.00185967,127.63,127.62,39.62343341]
[1764578647407,0.00185967,127.63,127.62,12.86343341]
[1764578647610,0.00185967,127.63,127.62,39.62343341]
[1764578649313,10.3696,127.69,127.65,7.0512]
[1764578649512,10.3696,127.69,127.67,5.75013341]
[1764578650009,3.32,127.71,127.68,3.16]
[1764578650212,3.32,127.7,127.69,26.76]
[1764578655101,4.88,127.7,127.69,26.76]
[1764578657216,3.32,127.69,127.68,0.05605323]
[1764578657816,10.3695,127.69,127.68,0.05605323]
[1764578661020,3.25,127.66,127.65,3.18]
[1764578661610,10.3007,127.67,127.65,3.18]
[1764578661816,10.35029461,127.67,127.65,3.23198559]
[1764578662922,7.10029461,127.67,127.65,3.23198559]
[1764578663120,10.35029461,127.67,127.65,3.23198559]
[1764578664922,3.29959461,127.67,127.65,3.23198559]
[1764578669331,3.29959461,127.67,127.65,0.05198559]
[1764578669926,10.35039461,127.67,127.65,0.05198559]
[1764578670130,3.25,127.66,127.65,0.05198559]
[1764578670928,10.3011,127.66,127.65,0.05198559]
[1764578673231,0.04959461,127.67,127.65,0.05198559]
[1764578673232,0.04959461,127.67,127.65,3.23198559]
[1764578673638,3.17959461,127.67,127.65,3.23198559]
[1764578674336,3.17959461,127.67,127.65,10.28368559]
[1764578676741,3.17959461,127.67,127.66,3.18]
[1764578677037,0.04959461,127.67,127.66,5.77013341]
[1764578677340,0.04959461,127.67,127.66,12.82123341]
[1764578678143,3.17959461,127.67,127.65,12.873719]
[1764578678334,3.17959461,127.67,127.65,32.562119]
[1764578678638,3.17959461,127.67,127.65,3.23198559]
[1764578679342,10.23039461,127.67,127.65,3.23198559]
[1764578679547,3.13,127.66,127.65,0.05198559]
[1764578685043,3.13,127.66,127.61,10.2336]
[1764578685349,3.13,127.65,127.62,5.77013341]
[1764578686149,3.13,127.65,127.62,5.82229349]
[1764578686150,3.18075054,127.65,127.62,5.82229349]
[1764578686446,3.13,127.63,127.62,5.82229349]
[1764578686741,3.13,127.63,127.62,0.05216008]
[1764578686943,10.1828,127.63,127.62,0.05216008]
[1764578690154,3.17,127.61,127.59,29.92]
[1764578690652,3.17,127.61,127.6,3.18]
[1764578692845,3.17,127.6,127.56,3.18]
[1764578693452,3.17,127.6,127.58,3.18]
[1764578693844,0.05284666,127.6,127.59,32.53013341]
[1764578695359,0.05284666,127.6,127.59,39.58513341]
[1764578698358,0.05284666,127.6,127.59,3.18]
[1764578698560,0.05284666,127.6,127.59,32.53013341]
[1764578699159,0.05284666,127.6,127.59,39.58513341]
[1764578700460,10.2222,127.65,127.62,5.77013341]
[1764578700651,10.2222,127.65,127.63,26.76]
[1764578700851,3.17,127.64,127.63,26.76]
[1764578701052,3.17,127.63,127.61,2.59013341]
[1764578701362,3.17,127.63,127.61,29.35013341]
[1764578701552,3.22979148,127.63,127.61,29.40603839]
[1764578702260,3.22979148,127.63,127.61,26.81590498]
[1764578702564,3.17,127.62,127.56,7.0566]
[1764578702752,3.17,127.62,127.55,29.94]
[1764578703062,3.17,127.58,127.55,29.94]
[1764578703467,3.22000453,127.58,127.55,29.99588978]
[1764578704360,3.22000453,127.58,127.55,37.05308978]
[1764578706960,3.22000453,127.58,127.55,29.99588978]
[1764578707161,10.27560453,127.58,127.55,29.99588978]
[1764578707362,3.17,127.57,127.55,29.99588978]
[1764578708464,7.10560453,127.58,127.55,29.99588978]
[1764578708664,10.27560453,127.58,127.55,29.99588978]
[1764578708862,10.27560453,127.58,127.56,3.18]
[1764578709362,7.10560453,127.58,127.56,3.18]
[1764578710764,10.27560453,127.58,127.56,3.18]
[1764578711268,3.17,127.57,127.55,3.23588978]
[1764578711466,3.17,127.57,127.55,0.05588978]
[1764578711467,3.17,127.56,127.55,0.05588978]
[1764578714868,10.2267,127.56,127.55,0.05588978]
[1764578715867,3.17,127.54,127.52,29.94]
[1764578716870,3.2254321,127.54,127.52,3.2389535]
[1764578717167,10.2832321,127.54,127.52,3.2389535]
[1764578718065,0.0554321,127.54,127.52,3.2389535]
[1764578719071,0.0554321,127.54,127.52,0.0589535]
[1764578719072,3.2254321,127.54,127.52,0.0589535]
[1764578719563,3.17,127.53,127.52,0.0589535]
[1764578721173,0.0554321,127.54,127.52,3.2389535]
[1764578721864,3.2154321,127.54,127.52,3.2389535]
[1764578731981,0.0554321,127.54,127.53,10.1283]
[1764578734785,3.29,127.58,127.55,3.07]
[1764578735279,7.0551,127.59,127.55,3.07]
[1764578735280,7.0551,127.59,127.56,3.07]
[1764578735479,3.29,127.6,127.57,3.07]
[1764578735677,3.34519655,127.6,127.57,3.12559813]
[1764578736086,3.29,127.59,127.57,3.12559813]
[1764578736688,3.29,127.59,127.57,0.05559813]
[1764578738393,10.3455,127.58,127.57,0.05559813]
[1764578739791,3.34519655,127.6,127.57,3.12559813]
[1764578741786,3.34519655,127.6,127.57,0.05559813]
[1764578743497,3.34519655,127.6,127.57,3.12559813]
[1764578743691,3.34519655,127.6,127.57,0.05559813]
[1764578743997,10.40019655,127.6,127.57,0.05559813]
[1764578744191,3.29,127.59,127.57,0.05559813]
[1764578745397,10.345,127.59,127.57,0.05559813]
[1764578745788,3.34519655,127.6,127.57,3.12559813]
[1764578746894,3.29,127.59,127.57,3.12559813]
[1764578747196,3.29,127.59,127.57,0.05559813]
[1764578748000,10.3453,127.59,127.57,0.05559813]
[1764578749401,3.29,127.58,127.57,0.05559813]
[1764578755106,3.17,127.59,127.57,3.22559813]
[1764578755702,0.05519655,127.6,127.58,3.17]
[1764578756512,0.05519655,127.6,127.59,10.225]
[1764578760319,3.22519655,127.6,127.59,7.055]
[1764578760516,3.22519655,127.6,127.58,7.0552]
[1764578760819,3.22519655,127.6,127.58,10.2252]
[1764578761617,3.22519655,127.6,127.59,26.76]
[1764578762616,3.22519655,127.6,127.58,7.0552]
[1764578762919,3.22519655,127.6,127.57,26.81559813]
[1764578763608,10.28009655,127.6,127.57,0.05559813]
[1764578763814,3.17,127.59,127.57,0.05559813]
[1764578766823,10.2251,127.59,127.57,0.05559813]
[1764578767222,3.17,127.58,127.57,0.05559813]
[1764578769422,10.2255,127.58,127.57,0.05559813]
[1764578774729,3.17,127.58,127.57,0.05559813]
[1764578775319,3.17,127.59,127.57,3.22559813]
[1764578775523,3.22519655,127.6,127.58,3.17]
[1764578777230,3.22519655,127.6,127.59,5.76246718]
[1764578777426,0.05519655,127.6,127.59,5.76246718]
[1764578781637,0.05519655,127.6,127.59,3.17]
[1764578789442,0.05519655,127.6,127.59,29.93]
[1764578791646,0.05519655,127.6,127.59,36.985]
[1764578793144,0.05519655,127.6,127.57,0.05559813]
[1764578793145,3.08,127.59,127.57,0.05559813]
[1764578793346,3.08,127.55,127.52,3.14]
[1764578793543,3.08,127.55,127.52,29.9]
[1764578794348,3.13879189,127.55,127.52,29.96046407]
[1764578794845,3.13879189,127.55,127.52,0.06046407]
[1764578794846,3.08,127.54,127.52,0.06046407]
[1764578796143,10.1379,127.54,127.52,0.06046407]
[1764578796342,3.08,127.53,127.52,0.06046407]
[1764578798651,3.13879189,127.55,127.52,3.20046407]
[1764578801650,0.05879189,127.55,127.54,3.14]
[1764578803958,0.05879189,127.55,127.53,9.65076718]
[1764578803959,10.1351,127.59,127.55,3.14]
[1764578804255,7.0551,127.59,127.57,3.14]
[1764578804553,10.1341,127.61,127.58,2.59246718]
[1764578804752,7.0541,127.61,127.59,3.14]
[1764578804953,7.11084588,127.61,127.59,3.19151663]
[1764578805158,3.08,127.6,127.59,0.05151663]
[1764578805550,7.11084588,127.61,127.59,0.05151663]
[1764578805748,10.19084588,127.61,127.59,0.05151663]
[1764578806146,3.08,127.6,127.59,0.05151663]
[1764578811862,10.1344,127.6,127.59,0.05151663]
[1764578815364,10.1352,127.59,127.56,3.13]
[1764578815572,3.08,127.58,127.55,5.72246718]
[1764578815965,3.08,127.58,127.55,12.77956718]
[1764578816173,3.08,127.59,127.56,3.13]
[1764578816378,3.1403063,127.59,127.56,3.17996213]
[1764578818380,3.1403063,127.59,127.56,10.23646213]
[1764578819880,3.1403063,127.59,127.57,3.13]
[1764578821584,3.1403063,127.59,127.56,10.23646213]
[1764578821783,3.08,127.58,127.56,0.04996213]
[1764578821983,3.08,127.58,127.56,3.17996213]
[1764578822681,3.08,127.58,127.56,0.04996213]
[1764578823380,3.08,127.58,127.56,3.17996213]
[1764578824182,3.08,127.58,127.56,0.04996213]
[1764578824573,3.08,127.58,127.56,3.17996213]
[1764578827186,3.08,127.58,127.56,0.04996213]
[1764578828389,3.08,127.58,127.56,3.17996213]
[1764578830986,3.1403063,127.59,127.57,3.13]
[1764578832086,0.0603063,127.59,127.58,3.13]
[1764578832894,0.0603063,127.59,127.58,10.1855]
[1764578833086,113.7247106,127.68,127.59,3.13]
[1764578833290,1.95800228,127.67,127.59,3.13]
[1764578833482,113.7247106,127.68,127.59,3.13]
[1764578833683,1.95784412,127.67,127.59,3.13]
[1764578833882,109.6851,127.66,127.57,7.1824106]
[1764578834084,0.05378132,127.63,127.6,0.055831]
[1764578834492,7.10708132,127.63,127.6,0.055831]
[1764578834697,0.05378132,127.63,127.6,3.185831]
[1764578835199,3.08,127.62,127.6,3.185831]
[1764578835695,3.08,127.62,127.6,0.055831]
[1764578836793,7.055,127.59,127.55,7.0569]
[1764578836996,3.08,127.58,127.53,3.13]
[1764578837600,3.08,127.57,127.54,3.13]
[1764578837799,3.13200147,127.57,127.54,3.18844077]
[1764578838396,3.08,127.55,127.54,0.05844077]
[1764578839295,7.0567,127.56,127.54,0.05844077]
[1764578839495,3.08,127.56,127.54,0.05844077]
[1764578840201,3.32,127.55,127.54,0.05844077]
[1764578841596,10.3772,127.55,127.54,0.05844077]
[1764578843000,3.32,127.56,127.54,3.13844077]
[1764578844195,7.10820147,127.57,127.54,3.13844077]
[1764578844796,10.42820147,127.57,127.54,3.13844077]
[1764578846496,3.37200147,127.57,127.54,3.13844077]
[1764578846697,0.05200147,127.57,127.54,10.19574077]
[1764578846899,0.05200147,127.57,127.55,3.08]
[1764578847490,0.05200147,127.57,127.56,30.02]
[1764578850094,0.05200147,127.57,127.56,37.0767]
[1764578850999,3.30200147,127.57,127.55,3.24]
[1764578851198,3.30200147,127.57,127.55,30.0]
[1764578851506,0.05200147,127.57,127.56,3.24]
[1764578851894,3.25,127.65,127.57,3.24]
[1764578852099,3.25,127.64,127.6,3.24]
[1764578852299,3.25,127.64,127.6,30.02]
[1764578852900,3.25,127.63,127.6,37.0744]
[1764578853099,3.30659092,127.63,127.61,0.05432274]
[1764578853801,3.30659092,127.63,127.61,3.29432274]
[1764578857113,0.05659092,127.63,127.61,10.34812274]
[1764578857315,0.05659092,127.63,127.62,3.24]
[1764578861905,0.05659092,127.63,127.62,30.02]
[1764578863708,0.05659092,127.63,127.62,37.0733]
[1764578868821,0.05659092,127.63,127.62,10.2933]
[1764578869016,0.05659092,127.63,127.62,37.0533]
[1764578869216,0.05659092,127.63,127.62,99.0533]
[1764578870522,0.05659092,127.63,127.62,37.0533]
[1764578873531,0.05659092,127.63,127.62,99.0533]
[1764578875128,0.05659092,127.63,127.62,37.0533]
[1764578876019,0.05659092,127.63,127.62,30.15]
[1764578879025,3.39659092,127.63,127.61,0.05432274]
[1764578879232,3.39659092,127.63,127.62,26.76]
[1764578879523,0.05659092,127.63,127.62,30.15]
[1764578880728,0.05659092,127.63,127.62,34.2024106]
[1764578881731,0.05659092,127.63,127.62,41.2557106]
[1764578883124,10.3903,127.68,127.64,3.39]
[1764578884025,3.39354445,127.67,127.65,0.05467427]
[1764578884226,3.39354445,127.67,127.66,26.76]
[1764578892327,0.05354445,127.67,127.66,37.2011]
[1764578894227,0.05354445,127.67,127.66,10.4411]
[1764578894428,0.05354445,127.67,127.66,39.77091924]
[1764578894932,3.34,127.73,127.7,3.33]
[1764578895932,3.39745443,127.73,127.7,3.38809845]
[1764578896328,3.39745443,127.73,127.7,0.05809845]
[1764578896526,3.34,127.71,127.66,3.33]
[1764578896727,3.34,127.69,127.66,26.76]
[1764578897226,3.34,127.69,127.66,30.09]
[1764578897731,3.38995573,127.69,127.66,30.14733475]
[1764578897929,3.34,127.68,127.66,30.14733475]
[1764578898132,3.34,127.68,127.66,26.81733475]
[1764578898731,3.34,127.67,127.66,0.05733475]
[1764578900340,10.3906,127.67,127.66,0.05733475]
[1764578906747,3.13,127.65,127.62,3.07]
[1764578907047,3.13,127.63,127.59,3.07]
[1764578907845,0.05071986,127.62,127.6,3.13035063]
[1764578908653,3.18071986,127.62,127.6,3.13035063]
[1764578913750,3.18071986,127.62,127.6,0.06035063]
[1764578913949,3.18071986,127.62,127.6,3.13035063]
[1764578917573,10.23411986,127.62,127.6,3.13035063]
[1764578917775,10.23411986,127.62,127.6,26.82035063]
[1764578919777,3.18071986,127.62,127.6,26.82035063]
[1764578919980,3.18071986,127.62,127.6,29.89035063]
[1764578920179,0.05071986,127.62,127.61,3.07]
[1764578922373,0.05071986,127.62,127.61,10.1239]
[1764578928586,0.05071986,127.62,127.61,3.07]
[1764578932379,0.05071986,127.62,127.61,29.83]
[1764578933488,0.05071986,127.62,127.61,3.07]
[1764578933694,0.05071986,127.62,127.61,29.83]
[1764578934393,0.05071986,127.62,127.61,36.8839]
[1764578937203,0.00071986,127.62,127.61,36.8839]
[1764578937398,10.3706,127.67,127.64,3.09]
[1764578937598,10.3706,127.67,127.65,26.76]
[1764578938404,10.43039121,127.67,127.65,26.81740397]
[1764578941506,10.43039121,127.67,127.65,29.90740397]
[1764578941803,0.05979121,127.67,127.66,3.09]
[1764578942309,3.37979121,127.67,127.65,0.05740397]
[1764578943304,10.43079121,127.67,127.65,3.14740397]
[1764578945704,7.11079121,127.67,127.65,3.14740397]
[1764578945905,0.05979121,127.67,127.66,3.09]
[1764578951815,0.05979121,127.67,127.66,10.1411]
[1764578952116,0.05979121,127.67,127.66,14.18705011]
[1764578952502,10.3673,127.73,127.69,3.09]
[1764578952706,3.32,127.72,127.69,29.85]
[1764578953504,3.32,127.71,127.69,0.04967726]
[1764578954216,10.3684,127.71,127.69,0.04967726]
[1764578954804,10.3684,127.71,127.69,3.13967726]
[1764578959016,3.32,127.7,127.69,0.04967726]
[1764578960619,10.2184,127.71,127.69,3.14967726]
[1764578960813,10.27666394,127.72,127.69,3.14967726]
[1764578966123,3.17,127.71,127.69,3.14967726]
[1764578966519,7.10666394,127.72,127.69,3.14967726]
[1764578966722,3.17,127.71,127.69,3.14967726]
[1764578966921,3.22876394,127.72,127.7,3.1]
[1764578967617,0.05876394,127.72,127.7,3.1]
[1764578967823,0.05876394,127.72,127.71,3.23]
[1764578970216,3.20876394,127.72,127.69,30.03967726]
[1764578971320,3.15,127.71,127.69,3.27967726]
[1764578971917,3.15,127.71,127.69,0.04967726]
[1764578972119,10.25666394,127.72,127.69,3.27967726]
[1764578972316,3.15,127.71,127.69,3.27967726]
[1764578975727,3.15,127.7,127.69,0.04967726]
[1764578977221,10.1989,127.7,127.69,0.04967726]
[1764578977633,3.15,127.69,127.65,29.99]
[1764578977819,3.15,127.67,127.64,37.0422]
[1764578978026,3.15,127.67,127.61,3.23]
[1764578978729,3.15,127.64,127.63,0.05100374]
[1764578983430,7.11195101,127.65,127.63,3.28100374]
[1764578983632,10.26195101,127.65,127.63,3.28100374]
[1764578985334,0.06015101,127.65,127.63,3.28100374]
[1764578987537,0.06015101,127.65,127.63,10.33380374]
[1764578987739,0.06015101,127.65,127.64,7.27595011]
[1764578988642,10.1987,127.71,127.65,10.2212]
[1764578988940,3.15,127.7,127.67,3.17]
[1764578989832,3.15,127.7,127.67,3.21992608]
[1764578989833,3.20544762,127.7,127.67,3.21992608]
[1764578990438,10.25434762,127.7,127.67,3.21992608]
[1764578991842,3.20544762,127.7,127.67,3.21992608]
[1764578995644,10.25454762,127.7,127.67,3.21992608]
[1764578995840,10.25454762,127.7,127.67,29.99992608]
[1764578997546,10.25454762,127.7,127.68,3.12]
[1764579000250,7.10454762,127.7,127.68,3.12]
[1764579001348,10.22454762,127.7,127.68,3.12]
[1764579001751,10.22454762,127.7,127.67,33.88042608]
[1764579001752,3.12,127.69,127.67,29.94992608]
[1764579001943,7.10454762,127.7,127.67,29.94992608]
[1764579001944,10.22454762,127.7,127.68,3.12]
[1764579005357,7.10454762,127.7,127.68,3.12]
[1764579005754,10.22454762,127.7,127.68,3.12]
[1764579007054,10.1697,127.69,127.67,0.04992608]
[1764579007254,3.12,127.68,127.67,0.04992608]
[1764579008751,10.17,127.68,127.67,0.04992608]
[1764579009054,10.17,127.68,127.62,5.70940945]
[1764579009055,3.12,127.67,127.62,5.70940945]
[1764579009248,3.12,127.67,127.63,3.12]
[1764579009957,2.58940945,127.68,127.63,3.12]
[1764579009958,3.17482913,127.66,127.64,0.05017928]
[1764579010457,3.12,127.65,127.64,0.05017928]
[1764579015358,0.05482913,127.66,127.64,5.75958873]
[1764579015556,0.05482913,127.66,127.65,3.12]
[1764579016155,0.05482913,127.66,127.64,12.81168873]
[1764579016355,0.05482913,127.66,127.65,3.12]
[1764579017751,3.17482913,127.66,127.64,2.63958873]
[1764579017948,3.17482913,127.66,127.64,5.75958873]
[1764579018764,0.05482913,127.66,127.64,5.75958873]
[1764579019057,3.17482913,127.66,127.65,26.76]
[1764579019966,10.22592913,127.66,127.64,0.05017928]
[1764579020265,3.12,127.65,127.64,26.81017928]
[1764579022653,3.12,127.65,127.64,0.05017928]
[1764579027473,10.42592913,127.66,127.64,3.22017928]
[1764579027869,3.32,127.65,127.64,0.05017928]
[1764579034377,10.3717,127.65,127.64,0.05017928]
[1764579034574,3.32,127.64,127.6,5.75940945]
[1764579035879,3.37839344,127.63,127.61,0.05301696]
[1764579048089,3.37839344,127.63,127.62,3.17]
[1764579048486,3.37839344,127.63,127.62,5.75940945]
[1764579048891,3.37839344,127.63,127.62,2.58940945]
[1764579049891,0.05839344,127.63,127.62,5.70940945]
[1764579050289,0.05839344,127.63,127.61,7.10691696]
[1764579050290,3.35839344,127.63,127.61,7.10691696]
[1764579050598,3.35839344,127.63,127.61,5.76242641]
[1764579051298,3.35839344,127.63,127.61,3.17301696]
[1764579051498,3.35839344,127.63,127.61,5.76242641]
[1764579053592,3.35839344,127.63,127.61,2.64242641]
[1764579054894,3.35839344,127.63,127.61,5.76242641]
[1764579056101,3.35839344,127.63,127.61,2.64242641]
[1764579058202,3.35839344,127.63,127.61,0.05301696]
[1764579059202,3.35839344,127.63,127.61,3.17301696]
[1764579061401,3.35839344,127.63,127.61,0.05301696]
[1764579064416,0.05839344,127.63,127.62,5.70940945]
[1764579068513,0.05839344,127.63,127.62,3.12]
[1764579068710,3.35839344,127.63,127.62,3.12]
[1764579068912,3.35839344,127.63,127.61,10.22671696]
[1764579070508,3.35839344,127.63,127.62,3.12]
[1764579070712,0.05839344,127.63,127.62,3.12]
[1764579076416,3.35839344,127.63,127.61,10.22671696]
[1764579076619,3.35839344,127.63,127.61,0.05301696]
[1764579078415,3.3,127.62,127.58,62.0]
[1764579078715,3.3,127.62,127.57,3.12]
[1764579079019,3.3,127.6,127.57,3.12]
[1764579079518,3.35690276,127.6,127.57,3.17422441]
[1764579079818,3.35690276,127.6,127.58,3.13]
[1764579080016,0.05690276,127.6,127.58,3.13]
[1764579081122,3.39690276,127.6,127.58,3.13]
[1764579084817,0.05690276,127.6,127.58,3.13]
[1764579086818,0.05690276,127.6,127.59,10.185]
[1764579087624,0.05690276,127.6,127.59,72.185]
[1764579088521,7.0522,127.65,127.6,3.13]
[1764579088724,3.34,127.64,127.6,3.13]
[1764579089423,7.0522,127.65,127.6,3.13]
[1764579089624,0.05443492,127.64,127.62,3.13]
[1764579090717,3.39443492,127.64,127.62,3.13]
[1764579091728,3.39443492,127.64,127.61,3.18168712]
[1764579091729,3.34,127.63,127.61,3.18168712]
[1764579095527,3.34,127.63,127.61,0.05168712]
[1764579097334,10.3633,127.62,127.61,0.05168712]
[1764579098035,3.31,127.62,127.61,0.05168712]
[1764579098230,10.3628,127.63,127.61,3.22168712]
[1764579099234,3.31,127.63,127.61,3.22168712]
[1764579103229,3.31,127.63,127.61,0.05168712]
[1764579103628,3.31,127.62,127.61,0.05168712]
[1764579106538,10.3629,127.63,127.61,3.22168712]
[1764579107935,7.0529,127.63,127.61,3.22168712]
[1764579108348,10.41673492,127.64,127.61,3.22168712]
[1764579109547,3.31,127.63,127.61,3.22168712]
[1764579110551,3.31,127.63,127.61,0.05168712]
[1764579112151,10.17673492,127.64,127.61,3.20168712]
[1764579112647,3.07,127.63,127.61,3.20168712]
[1764579113251,3.12443492,127.64,127.62,3.15]
[1764579116159,0.05443492,127.64,127.63,3.15]
[1764579118454,0.05443492,127.64,127.63,10.2028]
[1764579119861,0.05443492,127.64,127.63,3.15]
[1764579120360,3.12443492,127.64,127.62,14.25153416]
[1764579121562,3.12443492,127.64,127.61,0.05168712]
[1764579121749,3.12443492,127.64,127.61,3.20168712]
[1764579122158,3.12443492,127.64,127.61,0.05168712]
[1764579123565,10.17693492,127.64,127.61,0.05168712]
[1764579123769,3.07,127.63,127.61,0.05168712]
[1764579124260,10.1233,127.62,127.61,0.05168712]
[1764579135369,10.1233,127.62,127.61,0.00168712]
[1764579135570,3.07,127.6,127.57,9.64875024]
[1764579136065,3.07,127.6,127.57,12.85875024]
[1764579136472,3.12433996,127.6,127.57,12.90830044]
[1764579136873,3.12433996,127.6,127.57,74.90830044]
[1764579137058,3.12433996,127.6,127.58,3.21]
[1764579139074,3.07,127.59,127.57,3.2595502]
[1764579140570,3.07,127.59,127.57,5.85220044]
[1764579143572,10.38883996,127.6,127.58,3.22]
[1764579144169,3.33433996,127.6,127.58,3.22]
[1764579144374,0.05433996,127.6,127.58,3.22]
[1764579146671,3.33433996,127.6,127.58,3.22]
[1764579156074,0.05433996,127.6,127.58,3.22]
[1764579156383,0.05433996,127.6,127.59,5.82265024]
[1764579156681,3.17,127.67,127.6,3.23]
[1764579156882,3.17,127.67,127.61,5.82265024]
[1764579157283,3.17,127.64,127.62,3.23]
[1764579157679,3.22507679,127.64,127.62,3.28797579]
[1764579159785,3.22507679,127.64,127.62,0.05797579]
[1764579163984,10.2228,127.63,127.62,0.05797579]
[1764579164191,3.17,127.62,127.58,2.59265024]
[1764579164577,3.17,127.62,127.58,5.87265024]
[1764579164778,7.0539,127.61,127.58,5.87265024]
[1764579164977,3.17,127.6,127.58,5.87265024]
[1764579165192,3.22776518,127.6,127.58,5.9313951]
[1764579171105,10.28226518,127.6,127.58,5.9313951]
[1764579171603,7.055,127.59,127.58,3.34874486]
[1764579171793,10.165,127.59,127.58,0.05874486]
[1764579174703,10.165,127.59,127.55,2.59265024]
[1764579174704,3.11,127.57,127.53,22.66923613]
[1764579174896,3.11,127.56,127.53,3.29]
[1764579175406,10.1673,127.55,127.53,3.29]
[1764579175604,3.11,127.54,127.51,3.29]
[1764579175906,3.11,127.54,127.51,3.34269268]
[1764579175907,3.16223117,127.54,127.51,3.34269268]
[1764579177005,3.16223117,127.54,127.51,0.05269268]
[1764579177806,10.22053117,127.54,127.51,0.05269268]
[1764579178004,3.16223117,127.54,127.51,0.05269268]
[1764579179910,3.11,127.53,127.51,3.34269268]
[1764579180706,0.05223117,127.54,127.53,3.29]
[1764579182006,3.16223117,127.54,127.52,12.94115024]
[1764579183908,0.05223117,127.54,127.52,12.94115024]
[1764579184107,0.05223117,127.54,127.53,3.29]
[1764579187712,0.05223117,127.54,127.53,10.3483]
[1764579189109,10.1658,127.58,127.55,3.29]
[1764579189309,10.1658,127.58,127.55,5.88265024]
[1764579189709,3.11,127.57,127.55,5.88265024]
[1764579190114,3.15968795,127.57,127.55,5.94173376]
[1764579190417,3.15968795,127.57,127.55,3.34908352]
[1764579191909,0.04968795,127.57,127.56,3.29]
[1764579197617,0.04968795,127.57,127.56,10.3467]
[1764579217745,0.04968795,127.57,127.56,3.29]
[1764579218739,3.26968795,127.57,127.56,3.29]
[1764579219337,0.04968795,127.57,127.56,3.29]
[1764579226859,0.04968795,127.57,127.56,10.3467]
[1764579228857,3.22,127.61,127.59,3.23]
[1764579229060,3.22,127.61,127.58,10.2855]
[1764579229257,3.22,127.61,127.59,3.23]
[1764579229857,0.05160081,127.61,127.6,3.23]
[1764579230160,3.15160081,127.61,127.6,3.23]
[1764579231758,3.15160081,127.61,127.59,0.05733207]
[1764579232451,3.1,127.6,127.59,0.05733207]
[1764579234569,10.1544,127.6,127.59,0.05733207]
[1764579235157,3.1,127.58,127.56,3.28]
[1764579236069,3.15876948,127.58,127.56,3.33336059]
[1764579240067,3.15876948,127.58,127.57,3.28]
[1764579240765,0.05876948,127.58,127.57,3.28]
[1764579241169,3.15876948,127.58,127.57,3.28]
[1764579242072,3.15876948,127.58,127.56,10.38986059]
[1764579243876,3.15876948,127.58,127.57,3.28]
[1764579244368,0.05876948,127.58,127.57,3.28]
[1764579245269,3.15876948,127.58,127.56,10.38986059]
[1764579245571,3.15876948,127.58,127.53,3.28]
[1764579246777,3.15876948,127.58,127.54,3.33303743]
[1764579246972,3.1,127.56,127.54,3.33303743]
[1764579251676,7.10827073,127.57,127.54,3.33303743]
[1764579251677,0.05197073,127.57,127.55,3.28]
[1764579251882,3.15197073,127.57,127.55,3.28]